fUSD/lending_fUSD_20241101
["ID","MTS","AMOUNT","RATE_DAILY","PERIOD"]
[341149257,1730473850898,-500.0,0.0004438,3]
[341149258,1730473850907,-500.0,0.00044381,3]
[341149259,1730473850918,-500.0,0.00044381,3]
[341149260,1730473850928,-500.0,0.00044381,3]
[341149261,1730473850937,-500.0,0.00044381,3]
[341149262,1730473850946,-898.66,0.00044381,3]
[341149263,1730473850955,-500.0,0.00044381,3]
[341149264,1730473850965,-527.26,0.00044381,3]
[341149265,1730473850975,-594.02,0.00044382,3]
[341149266,1730473850985,-62388.26631165,0.00044383,4]
[341149267,1730473850994,-62388.26631165,0.00044392,4]
[341149268,1730473851004,-1502.91666327,0.00044406,4]
[341149269,1730473851014,-1502.91666327,0.00044412,4]
[341149270,1730473851023,-180.0,0.00044445,120]
[341149271,1730473851033,-62388.26631165,0.00044461,4]
[341149272,1730473851042,-150.0,0.00044461,3]
[341149273,1730473851052,-500.0,0.00044461,3]
[341149274,1730473851061,-500.0,0.00044461,3]
[341149275,1730473851070,-500.0,0.00044461,3]
[341149276,1730473851081,-501.89,0.00044461,3]
[341149277,1730473851091,-500.0,0.00044461,3]
[341149278,1730473851100,-500.0,0.00044461,3]
[341149279,1730473851110,-925.29,0.00044461,3]
[341149280,1730473851120,-858.07,0.00044461,3]
[341149281,1730473851130,-500.0,0.00044461,3]
[341149282,1730473851139,-500.0,0.00044461,3]
[341149283,1730473851148,-500.0,0.00044461,3]
[341149284,1730473851158,-361.04113226,0.00044461,3]
[341149285,1730473851168,-500.0,0.00044461,3]
[341149286,1730473851178,-500.0,0.00044461,3]
[341149287,1730473851189,-500.0,0.00044461,3]
[341149288,1730473851200,-500.0,0.00044461,3]
[341149289,1730473851210,-500.0,0.00044461,3]
[341149290,1730473851219,-500.0,0.00044461,3]
[341149291,1730473851230,-640.66,0.00044461,3]
[341149292,1730473851239,-500.0,0.00044461,3]
[341149293,1730473851249,-1161.63,0.00044461,3]
[341149294,1730473851258,-447.22644989,0.00044461,3]
[341149295,1730473851267,-500.0,0.00044461,3]
[341149296,1730473851276,-500.0,0.00044461,3]
[341149297,1730473851286,-496.54421523,0.00044461,3]
[341149298,1730473851296,-500.0,0.00044461,3]
[341149299,1730473851305,-500.0,0.00044461,3]
[341149300,1730473851315,-500.0,0.00044461,3]
[341149301,1730473851324,-500.0,0.00044461,3]
[341149302,1730473851333,-500.0,0.00044461,3]
[341149303,1730473851342,-500.0,0.00044461,3]
[341149304,1730473851351,-500.0,0.00044461,3]
[341149305,1730473851361,-500.0,0.00044461,3]
[341149306,1730473851371,-500.0,0.00044461,3]
[341149307,1730473851380,-500.0,0.00044461,3]
[341149308,1730473851389,-500.0,0.00044461,3]
[341149309,1730473851399,-500.0,0.00044461,3]
[341149310,1730473851408,-809.78,0.00044461,3]
[341149311,1730473851418,-500.0,0.00044461,3]
[341149312,1730473851427,-500.0,0.00044461,3]
[341149313,1730473851437,-500.0,0.00044461,3]
[341149314,1730473851446,-385.55737531,0.00044461,3]
[341149315,1730473851456,-500.0,0.00044461,3]
[341149316,1730473851465,-62388.26631165,0.00044461,4]
[341149317,1730473851474,-235.0,0.00044462,7]
[341149318,1730473851605,-500.0,0.00044462,3]
[341149319,1730473851616,-249.70075774,0.00044462,3]
[341149320,1730473851626,-500.54,0.00044462,3]
[341149321,1730473851635,-838.72,0.00044462,3]
[341149322,1730473851645,-831.75,0.00044462,3]
[341149323,1730473851655,-616.32,0.00044462,3]
[341149324,1730473851666,-500.0,0.00044462,3]
[341149325,1730473851676,-15227.3354048,0.00044471,4]
[341149326,1730473851686,-150.0,0.00044473,2]
[341149327,1730473851701,-150.0,0.00044476,2]
[341149328,1730473851711,-150.0,0.00044479,2]
[341149329,1730473851720,-150.0,0.0004448,2]
[341149330,1730473851729,-150.0,0.00044484,2]
[341149331,1730473851738,-150.0,0.00044485,2]
[341149332,1730473851748,-150.0,0.0004449,2]
[341149333,1730473851757,-150.0,0.00044491,2]
[341149334,1730473851767,-150.0,0.00044493,2]
[341149335,1730473851775,-150.0,0.00044495,2]
[341149336,1730473851784,-150.0,0.00044496,2]
[341149337,1730473851793,-150.0,0.00044498,2]
[341149338,1730473851802,-150.0,0.00044499,2]
[341149339,1730473851813,-150.0,0.00044512,2]
[341149340,1730473851823,-15227.3354048,0.00044514,4]
[341149341,1730473851834,-150.0,0.00044514,2]
[341149342,1730473851843,-150.0,0.00044515,2]
[341149343,1730473851853,-150.0,0.00044517,2]
[341149344,1730473851862,-1502.91666327,0.00044518,4]
[341149345,1730473851872,-1502.91666327,0.00044519,4]
[341149346,1730473851882,-15227.3354048,0.0004452,4]
[341149347,1730473851892,-150.0,0.0004452,2]
[341149348,1730473851904,-150.0,0.00044522,2]
[341149349,1730473851916,-150.0,0.00044524,2]
[341149350,1730473851926,-445.65,0.0004453,2]
[341149351,1730473851935,-150.0,0.0004453,2]
[341149352,1730473851945,-150.0,0.0004453,2]
[341149353,1730473851954,-150.0,0.00044531,2]
[341149354,1730473851963,-150.0,0.00044532,2]
[341149355,1730473851972,-150.0,0.00044532,2]
[341149356,1730473851983,-150.0,0.00044534,2]
[341149357,1730473851992,-150.0,0.00044536,2]
[341149358,1730473852001,-150.0,0.00044537,2]
[341149359,1730473852011,-150.0,0.00044539,2]
[341149360,1730473852020,-150.0,0.00044539,2]
[341149361,1730473852029,-150.0,0.0004454,2]
[341149362,1730473852038,-150.0,0.00044547,2]
[341149363,1730473852047,-150.0,0.00044548,2]
[341149364,1730473852057,-150.0,0.00044549,2]
[341149365,1730473852067,-150.0,0.00044551,2]
[341149366,1730473852076,-27811.90114934,0.00044557,4]
[341149367,1730473852092,-1673.21,0.00044557,4]
[341149368,1730473904648,250.0,0.00017,2]
[341149369,1730473905753,300.0,0.00019,2]
[341149370,1730473907472,591.4905,0.00032025,2]
[341149371,1730473909821,223.58925,0.00032025,2]
[341149373,1730474231256,158.97,0.00015342,2]
[341149374,1730474708379,177230.01,0.00016,2]
[341149375,1730474708404,16015.0,0.00016,2]
[341149376,1730474708427,30000.0,0.00016,2]
[341149377,1730474708451,30000.0,0.00016,2]
[341149378,1730474708481,14961.77732564,0.00016,2]
[341149379,1730474708506,100000.0,0.00016,2]
[341149380,1730474708531,857658.88774989,0.00016,2]
[341149381,1730474730093,18570.82000001,0.000101,2]
[341149382,1730474748410,156.03,0.00015342,2]
[341149383,1730474755839,7368.13905881,0.000159,2]
[341149384,1730474756459,1055.88871535,6.94e-05,2]
[341149385,1730474848133,-584.36660139,0.00021,2]
[341149386,1730474848154,-1108.92589294,0.00022,2]
[341149387,1730474849145,-936.88150201,0.00022,2]
[341149388,1730474854143,-844.38547309,0.00022,2]
[341149389,1730474854165,-1027.08871442,0.00026,2]
[341149390,1730474854188,-165.73551217,0.000378,2]
[341149391,1730474854213,-250.0,0.000384,120]
[341149392,1730474854242,-579.18,0.00039275,2]
[341149393,1730474854266,-2432.49968469,0.00039275,2]
[341149395,1730474886031,147935.81742575,0.00015,2]
[341149399,1730474907900,714.94000001,0.0002,2]
[341149401,1730474925123,5389.0,0.00015,2]
[341149402,1730474950122,-1753.08841491,0.000232,2]
[341149403,1730474950142,-1635.5215029,0.00023922,2]
[341149404,1730474950161,-2638.53929528,0.00035,2]
[341149405,1730475001585,300.0,0.00019725,2]
[341149412,1730475031673,-1759.90607983,0.00037473,3]
[341149413,1730475031684,-4138.95655851,0.0003759,2]
[341149414,1730475031694,-1182.13736166,0.000379,2]
[341149416,1730475036358,-3595.95262906,0.000379,2]
[341149417,1730475036369,-4381.33218236,0.000379,2]
[341149418,1730475036382,-359.40237,0.000379,2]
[341149419,1730475036394,-292.20675723,0.000379,2]
[341149420,1730475036405,-4129.8647498,0.000379,2]
[341149421,1730475036415,-3208.51944473,0.00038998,3]
[341149422,1730475036425,-3312.24753494,0.00039584,2]
[341149423,1730475036474,-58.75246506,0.00039584,2]
[341149424,1730475036483,-13585.0,0.00039584,2]
[341149425,1730475036494,-1155.0,0.00039584,2]
[341149426,1730475036504,-11430.12505443,0.00039724,2]
[341149427,1730475036514,-591.4905,0.00039724,2]
[341149428,1730475036523,-152.0,0.00039871,3]
[341149429,1730475036533,-150.99,0.00039871,2]
[341149430,1730475036543,-153.0,0.00039878,2]
[341149431,1730475036552,-153.0,0.00039878,2]
[341149432,1730475036561,-153.0,0.00039878,2]
[341149433,1730475036571,-153.0,0.00039878,2]
[341149434,1730475036580,-825.1559,0.00039888,7]
[341149435,1730475036590,-314.12756439,0.00039974,2]
[341149436,1730475036600,-302.71,0.0003999,10]
[341149437,1730475036610,-355.67,0.0003999,10]
[341149438,1730475036619,-300.0,0.0004,120]
[341149439,1730475036630,-500.0,0.0004,4]
[341149440,1730475036639,-500.0,0.0004,4]
[341149441,1730475036649,-3893.1678635,0.0004,4]
[341149442,1730475036676,-1791.0,0.00039584,2]
[341149443,1730475036686,-23382.83978871,0.0004,4]
[341149444,1730475036697,-22525.71301685,0.0004,4]
[341149445,1730475036707,-45942.95008072,0.0004,30]
[341149446,1730475036717,-23880.0,0.00040074,2]
[341149447,1730475036726,-156.9,0.00040129,2]
[341149448,1730475036736,-1170.53,0.00040151,2]
[341149449,1730475036745,-2622.06,0.00040191,2]
[341149450,1730475036755,-5140.05,0.00040191,2]
[341149451,1730475036765,-156.9,0.00040262,2]
[341149452,1730475036774,-156.9,0.00040396,2]
[341149453,1730475036784,-3991.42135713,0.00040441,15]
[341149454,1730475036794,-156.9,0.0004053,2]
[341149455,1730475036804,-155.36,0.00040541,2]
[341149456,1730475036813,-186.371,0.00040541,2]
[341149457,1730475036823,-186.371,0.00040541,2]
[341149458,1730475036832,-897.56769841,0.0004077,30]
[341149459,1730475036843,-157.93,0.0004081,2]
[341149460,1730475036852,-152.33,0.00041096,2]
[341149461,1730475036861,-500.0,0.00041193,2]
[341149462,1730475036871,-2000.0,0.00041234,4]
[341149463,1730475036881,-1540.04505869,0.00041285,2]
[341149464,1730475036892,-6961.37,0.00041285,2]
[341149465,1730475036901,-1000.1,0.00041368,2]
[341149466,1730475036911,-250.0,0.00041368,2]
[341149467,1730475036921,-640.0,0.00041368,2]
[341149468,1730475036930,-250.0,0.00041386,2]
[341149469,1730475036940,-150.0,0.00041389,2]
[341149470,1730475036950,-200.0,0.00041412,2]
[341149471,1730475036959,-364.6,0.00041417,2]
[341149472,1730475036968,-159.33,0.00041478,2]
[341149473,1730475036978,-500.0,0.00041483,2]
[341149474,1730475036988,-250.0,0.00041487,120]
[341149475,1730475036997,-579.18,0.00041539,2]
[341149476,1730475037007,-167.84,0.00041545,2]
[341149477,1730475037016,-1623.2,0.00041565,2]
[341149478,1730475037025,-1345.99062926,0.000416,2]
[341149479,1730475037035,-1071.14,0.00041644,2]
[341149480,1730475037044,-188.03,0.00041658,2]
[341149481,1730475037054,-803.64,0.00041663,30]
[341149482,1730475037063,-454.183,0.00041673,2]
[341149483,1730475037073,-1250.0,0.00041673,2]
[341149484,1730475037082,-5909.0,0.00041673,2]
[341149485,1730475037092,-500.0,0.00041673,2]
[341149486,1730475037101,-242.67,0.00041673,2]
[341149487,1730475037111,-557.0,0.00041673,2]
[341149488,1730475037126,-937.0,0.00041673,2]
[341149489,1730475037135,-153.803,0.00041673,2]
[341149490,1730475037144,-180.759,0.00041673,62]
[341149491,1730475037154,-314.12756437,0.00041677,2]
[341149492,1730475037166,-360.0,0.00041902,2]
[341149493,1730475037175,-268.25,0.0004199,2]
[341149494,1730475037185,-300.0,0.00042,120]
[341149495,1730475037197,-150.0,0.00042,49]
[341149496,1730475037208,-76833.66297965,0.00042,30]
[341149497,1730475037217,-3991.42135711,0.0004238,15]
[341149498,1730475037227,-202.62,0.00042388,120]
[341149499,1730475037237,-153.0,0.00042419,31]
[341149500,1730475037246,-153.0,0.00042419,31]
[341149501,1730475037255,-424.376,0.0004258,2]
[341149502,1730475037265,-13553.0,0.00042584,2]
[341149503,1730475037274,-266.4,0.00042584,2]
[341149504,1730475037284,-2846.30260931,0.00042677,2]
[341149505,1730475037293,-268.25,0.00042802,2]
[341149506,1730475037303,-5460.2746,0.00042812,2]
[341149507,1730475037312,-26225.8694,0.00042812,2]
[341149508,1730475037322,-1438.1884,0.00042812,2]
[341149509,1730475037332,-786.2575,0.00042812,2]
[341149510,1730475037342,-152.0,0.00042904,4]
[341149511,1730475037351,-1000.0,0.00042991,2]
[341149512,1730475037360,-504.44,0.00043,7]
[341149513,1730475037370,-166.16,0.00043048,2]
[341149514,1730475037381,-500.0,0.00043091,3]
[341149515,1730475037391,-424.413,0.0004319,2]
[341149516,1730475037401,-922.9565,0.0004328,2]
[341149517,1730475037411,-500.0,0.00043284,3]
[341149518,1730475037421,-500.0,0.00043284,3]
[341149519,1730475037430,-245.66999695,0.00043284,3]
[341149520,1730475037440,-500.0,0.00043284,3]
[341149521,1730475037449,-500.0,0.00043284,3]
[341149522,1730475037458,-498.64183754,0.00043291,10]
[341149523,1730475037467,-503.67848373,0.00043365,3]
[341149524,1730475037477,-268.25,0.0004337,2]
[341149525,1730475037487,-268.25,0.0004337,2]
[341149526,1730475037497,-268.25,0.0004337,2]
[341149527,1730475037506,-500.0,0.00043379,3]
[341149528,1730475037515,-150.0,0.00043379,3]
[341149529,1730475037524,-500.0,0.00043379,3]
[341149530,1730475037533,-500.0,0.00043379,3]
[341149531,1730475037543,-500.0,0.00043379,3]
[341149532,1730475037552,-500.0,0.00043379,3]
[341149533,1730475037562,-500.0,0.00043379,3]
[341149534,1730475037571,-500.0,0.00043379,3]
[341149535,1730475037581,-693.97,0.00043379,3]
[341149536,1730475037590,-643.55,0.00043379,3]
[341149537,1730475037599,-500.0,0.00043379,3]
[341149538,1730475037608,-500.0,0.00043379,3]
[341149539,1730475037618,-500.0,0.00043379,3]
[341149540,1730475037628,-500.0,0.00043379,3]
[341149541,1730475037638,-500.0,0.00043379,3]
[341149542,1730475037648,-500.0,0.00043379,3]
[341149543,1730475037657,-500.0,0.00043379,3]
[341149544,1730475037666,-871.23,0.00043379,3]
[341149545,1730475037676,-500.0,0.00043379,3]
[341149546,1730475037687,-500.0,0.00043379,3]
[341149547,1730475037696,-500.0,0.00043379,3]
[341149549,1730475037706,-500.0,0.00043379,3]
[341149550,1730475037715,-500.0,0.00043379,3]
[341149551,1730475037725,-500.0,0.00043379,3]
[341149552,1730475037734,-500.0,0.00043379,3]
[341149553,1730475037744,-665.98,0.00043379,3]
[341149554,1730475037753,-500.0,0.00043379,3]
[341149555,1730475037763,-500.0,0.00043379,3]
[341149556,1730475037772,-500.0,0.00043379,3]
[341149557,1730475037781,-465.24,0.00043379,3]
[341149558,1730475037790,-500.0,0.00043379,3]
[341149559,1730475037800,-500.0,0.00043379,3]
[341149560,1730475037809,-653.19,0.00043379,3]
[341149561,1730475037819,-500.0,0.00043379,3]
[341149562,1730475037828,-405.32947925,0.00043379,3]
[341149563,1730475037838,-315.20781974,0.00043379,3]
[341149564,1730475037847,-500.0,0.00043379,3]
[341149565,1730475037856,-500.0,0.00043379,3]
[341149566,1730475037866,-500.0,0.00043379,3]
[341149567,1730475037877,-500.0,0.00043379,3]
[341149568,1730475037886,-500.0,0.00043379,3]
[341149569,1730475037896,-607.34,0.00043379,3]
[341149570,1730475037905,-500.0,0.00043379,3]
[341149571,1730475037914,-500.0,0.00043379,3]
[341149572,1730475037924,-500.0,0.00043379,3]
[341149573,1730475037934,-500.0,0.00043379,3]
[341149574,1730475037943,-500.0,0.00043379,3]
[341149575,1730475037952,-500.0,0.00043379,3]
[341149576,1730475037962,-500.0,0.00043379,3]
[341149577,1730475037971,-500.0,0.00043379,3]
[341149578,1730475037981,-500.0,0.00043379,3]
[341149579,1730475037990,-500.0,0.00043379,3]
[341149580,1730475037999,-543.75,0.00043379,3]
[341149581,1730475038009,-500.0,0.00043379,3]
[341149582,1730475038018,-818.58,0.00043379,3]
[341149583,1730475038152,-2282.48,0.00043379,3]
[341149584,1730475038163,-500.0,0.00043379,3]
[341149585,1730475038172,-500.0,0.00043379,3]
[341149586,1730475038181,-500.0,0.00043379,3]
[341149587,1730475038191,-500.0,0.00043379,3]
[341149588,1730475038203,-500.0,0.00043379,3]
[341149589,1730475038213,-500.0,0.00043379,3]
[341149590,1730475038223,-500.0,0.00043379,3]
[341149591,1730475038232,-711.43,0.00043379,3]
[341149592,1730475038242,-500.0,0.00043379,3]
[341149593,1730475038251,-500.0,0.00043379,3]
[341149594,1730475038261,-6378.1446,0.0004338,2]
[341149595,1730475038270,-1966.6263,0.0004338,2]
[341149596,1730475038279,-2149.1037,0.0004338,2]
[341149597,1730475038289,-136163.4407,0.0004338,2]
[341149598,1730475038298,-314.12756437,0.0004338,2]
[341149599,1730475038308,-536.52465128,0.0004338,2]
[341149600,1730475038317,-424.435,0.0004348,4]
[341149601,1730475038327,-177.24,0.00043488,2]
[341149602,1730475038336,-3103.53444591,0.00043495,120]
[341149603,1730475038345,-161.12,0.00043518,2]
[341149604,1730475038355,-500.0,0.00043558,3]
[341149605,1730475038364,-425.48502636,0.00043558,3]
[341149606,1730475038374,-500.0,0.00043558,3]
[341149607,1730475038384,-478.0,0.000436,30]
[341149608,1730475038393,-500.0,0.00043653,3]
[341149609,1730475038402,-150.0,0.00043653,3]
[341149610,1730475038412,-500.0,0.00043653,3]
[341149611,1730475038423,-500.0,0.00043653,3]
[341149612,1730475038432,-500.0,0.00043653,3]
[341149613,1730475038442,-500.0,0.00043653,3]
[341149614,1730475038453,-500.0,0.00043653,3]
[341149615,1730475038463,-500.0,0.00043653,3]
[341149616,1730475038473,-693.97,0.00043653,3]
[341149617,1730475038483,-643.55,0.00043653,3]
[341149618,1730475038494,-625.31399911,0.00043653,3]
[341149619,1730475038505,-500.0,0.00043653,3]
[341149620,1730475038516,-500.0,0.00043653,3]
[341149621,1730475038526,-500.0,0.00043653,3]
[341149622,1730475038536,-500.0,0.00043653,3]
[341149623,1730475038546,-500.0,0.00043653,3]
[341149624,1730475038558,-500.0,0.00043653,3]
[341149625,1730475038569,-871.23,0.00043653,3]
[341149626,1730475038579,-500.0,0.00043653,3]
[341149627,1730475038589,-500.0,0.00043653,3]
[341149628,1730475038601,-276.33866788,0.00043653,3]
[341149629,1730475038612,-500.0,0.00043653,3]
[341149630,1730475038621,-500.0,0.00043653,3]
[341149631,1730475038631,-500.0,0.00043653,3]
[341149632,1730475038641,-500.0,0.00043653,3]
[341149633,1730475038650,-665.98,0.00043653,3]
[341149634,1730475038660,-500.0,0.00043653,3]
[341149635,1730475038670,-500.0,0.00043653,3]
[341149636,1730475038681,-500.0,0.00043653,3]
[341149637,1730475038691,-500.0,0.00043653,3]
[341149638,1730475038701,-500.0,0.00043653,3]
[341149639,1730475038711,-653.19,0.00043653,3]
[341149640,1730475038722,-500.0,0.00043653,3]
[341149641,1730475038732,-500.0,0.00043653,3]
[341149642,1730475038741,-500.0,0.00043653,3]
[341149643,1730475038751,-500.0,0.00043653,3]
[341149644,1730475038761,-500.0,0.00043653,3]
[341149645,1730475038770,-500.0,0.00043653,3]
[341149646,1730475038779,-607.34,0.00043653,3]
[341149648,1730475038789,-500.0,0.00043653,3]
[341149650,1730475038798,-500.0,0.00043653,3]
[341149651,1730475038808,-500.0,0.00043653,3]
[341149653,1730475038817,-500.0,0.00043653,3]
[341149654,1730475038827,-500.0,0.00043653,3]
[341149656,1730475038836,-500.0,0.00043653,3]
[341149658,1730475038847,-500.0,0.00043653,3]
[341149659,1730475038856,-500.0,0.00043653,3]
[341149660,1730475038866,-500.0,0.00043653,3]
[341149661,1730475038876,-500.0,0.00043653,3]
[341149662,1730475038885,-543.75,0.00043653,3]
[341149663,1730475038895,-500.0,0.00043653,3]
[341149664,1730475038905,-818.58,0.00043653,3]
[341149665,1730475038914,-2282.48,0.00043653,3]
[341149666,1730475038924,-500.0,0.00043653,3]
[341149667,1730475038933,-500.0,0.00043653,3]
[341149668,1730475038942,-500.0,0.00043653,3]
[341149669,1730475038951,-500.0,0.00043653,3]
[341149670,1730475038961,-500.0,0.00043653,3]
[341149671,1730475038970,-500.0,0.00043653,3]
[341149672,1730475038980,-599.06065148,0.00043653,3]
[341149673,1730475038989,-500.0,0.00043653,3]
[341149674,1730475038999,-711.43,0.00043653,3]
[341149675,1730475039008,-561.8,0.00043653,3]
[341149676,1730475039018,-1025.0488724,0.00043666,10]
[341149677,1730475039027,-1492.58798633,0.00043666,10]
[341149678,1730475039036,-500.0,0.0004367,10]
[341149679,1730475039045,-424.408,0.000437,120]
[341149680,1730475039054,-188.03,0.00043741,2]
[341149681,1730475039063,-579.18,0.00043803,2]
[341149682,1730475039073,-500.0,0.00043831,3]
[341149683,1730475039082,-500.0,0.00043831,3]
[341149684,1730475039091,-500.0,0.00043831,3]
[341149685,1730475039100,-500.0,0.00043831,3]
[341149686,1730475039110,-500.0,0.00043831,3]
[341149687,1730475039126,-202.08291705,0.00043831,3]
[341149688,1730475039139,-500.0,0.00043831,3]
[341149689,1730475039149,-500.0,0.00043832,3]
[341149690,1730475039158,-342.09,0.00043832,3]
[341149691,1730475039169,-2110.0,0.00043841,30]
[341149692,1730475039178,-151.1,0.00043917,2]
[341149693,1730475039187,-223.66228819,0.00043917,2]
[341149694,1730475039197,-468.56465372,0.00043927,3]
[341149695,1730475039206,-240.014879,0.00043927,3]
[341149696,1730475039215,-500.0,0.00043927,3]
[341149697,1730475039225,-500.0,0.00043927,3]
[341149698,1730475039234,-500.0,0.00043927,3]
[341149699,1730475039244,-500.0,0.00043927,3]
[341149700,1730475039253,-500.0,0.00043927,3]
[341149701,1730475039262,-500.0,0.00043927,3]
[341149702,1730475039271,-693.97,0.00043927,3]
[341149703,1730475039280,-643.55,0.00043927,3]
[341149704,1730475039290,-500.0,0.00043927,3]
[341149705,1730475039299,-500.0,0.00043927,3]
[341149706,1730475039309,-500.0,0.00043927,3]
[341149707,1730475039318,-500.0,0.00043927,3]
[341149708,1730475039327,-500.0,0.00043927,3]
[341149709,1730475039336,-500.0,0.00043927,3]
[341149710,1730475039346,-871.23,0.00043927,3]
[341149711,1730475039355,-500.0,0.00043927,3]
[341149712,1730475039365,-500.0,0.00043927,3]
[341149713,1730475039376,-500.0,0.00043927,3]
[341149714,1730475039385,-500.0,0.00043927,3]
[341149715,1730475039395,-500.0,0.00043927,3]
[341149716,1730475039404,-500.0,0.00043927,3]
[341149717,1730475039414,-665.98,0.00043927,3]
[341149718,1730475039424,-500.0,0.00043927,3]
[341149719,1730475039434,-500.0,0.00043927,3]
[341149720,1730475039444,-500.0,0.00043927,3]
[341149721,1730475039453,-500.0,0.00043927,3]
[341149722,1730475039463,-500.0,0.00043927,3]
[341149723,1730475039473,-653.19,0.00043927,3]
[341149724,1730475039483,-500.0,0.00043927,3]
[341149725,1730475039492,-453.84,0.00043927,3]
[341149726,1730475039502,-500.0,0.00043927,3]
[341149727,1730475039511,-500.0,0.00043927,3]
[341149728,1730475039521,-500.0,0.00043927,3]
[341149729,1730475039530,-500.0,0.00043927,3]
[341149730,1730475039540,-607.34,0.00043927,3]
[341149731,1730475039549,-500.0,0.00043927,3]
[341149732,1730475039559,-500.0,0.00043927,3]
[341149733,1730475039567,-500.0,0.00043927,3]
[341149734,1730475039577,-500.0,0.00043927,3]
[341149735,1730475039586,-500.0,0.00043927,3]
[341149736,1730475039596,-500.0,0.00043927,3]
[341149737,1730475039606,-500.0,0.00043927,3]
[341149738,1730475039616,-500.0,0.00043927,3]
[341149739,1730475039627,-500.0,0.00043927,3]
[341149740,1730475039641,-164.6631391,0.00043927,3]
[341149741,1730475039650,-543.75,0.00043927,3]
[341149742,1730475039659,-500.0,0.00043927,3]
[341149743,1730475039668,-818.58,0.00043927,3]
[341149744,1730475039677,-2282.48,0.00043927,3]
[341149745,1730475039686,-500.0,0.00043927,3]
[341149746,1730475039696,-500.0,0.00043927,3]
[341149747,1730475039706,-500.0,0.00043927,3]
[341149748,1730475039715,-500.0,0.00043927,3]
[341149749,1730475039724,-500.0,0.00043927,3]
[341149750,1730475039733,-500.0,0.00043927,3]
[341149751,1730475039743,-500.0,0.00043927,3]
[341149752,1730475039753,-711.43,0.00043927,3]
[341149753,1730475039762,-300.0,0.00044,120]
[341149754,1730475039771,-504.0,0.00044014,14]
[341149755,1730475039780,-504.39281969,0.00044105,3]
[341149756,1730475039789,-503.66440077,0.00044105,3]
[341149757,1730475039798,-500.0,0.00044105,3]
[341149758,1730475039807,-500.0,0.00044105,3]
[341149759,1730475039817,-581.7,0.00044105,3]
[341149760,1730475039826,-528.07706,0.00044134,120]
[341149761,1730475039835,-500.0,0.00044134,120]
[341149762,1730475039844,-200.0,0.00044134,120]
[341149763,1730475039853,-615.63237441,0.00044201,3]
[341149764,1730475039862,-500.0,0.00044201,3]
[341149765,1730475039871,-500.0,0.00044201,3]
[341149766,1730475039884,-500.0,0.00044201,3]
[341149767,1730475039893,-500.0,0.00044201,3]
[341149768,1730475039902,-500.0,0.00044201,3]
[341149769,1730475039911,-693.97,0.00044201,3]
[341149770,1730475039920,-643.55,0.00044201,3]
[341149771,1730475039930,-500.0,0.00044201,3]
[341149772,1730475039939,-500.0,0.00044201,3]
[341149773,1730475039949,-625.79960415,0.00044201,3]
[341149774,1730475039958,-500.0,0.00044201,3]
[341149775,1730475039968,-500.0,0.00044201,3]